bitfinex-derivatives/quotes_ETHF0:USTF0_20260125
["timestamp","ask_amount","ask_price","bid_price","bid_amount"]
[1769315244481,4.19496638,2943.1,2942.1,0.61161713]
[1769315244676,1.12455355,2943.4,2942.0,2.95167392]
[1769315244885,4.19468638,2943.3,2942.0,2.95167392]
[1769315245182,4.19468638,2943.2,2942.0,2.95167392]
[1769315245382,4.19468638,2943.1,2942.0,2.95167392]
[1769315245585,1.12455355,2943.4,2942.0,2.95167392]
[1769315245885,4.1944263,2943.3,2942.0,2.95167392]
[1769315246084,4.1944263,2943.2,2942.0,2.95167392]
[1769315246285,4.1944263,2943.1,2942.0,2.95167392]
[1769315246481,1.12455355,2943.4,2942.0,2.95167392]
[1769315246781,4.19439721,2943.3,2942.0,2.95167392]
[1769315246981,4.19439721,2943.2,2942.0,2.95167392]
[1769315247187,4.19439721,2943.1,2942.0,2.95167392]
[1769315247485,1.12455355,2943.4,2942.0,2.95167392]
[1769315247781,4.19434409,2943.3,2942.0,2.95167392]
[1769315247985,4.19434409,2943.2,2942.0,2.95167392]
[1769315248179,4.19434409,2943.1,2942.0,2.95167392]
[1769315248379,4.19434409,2943.0,2942.0,2.95167392]
[1769315248576,1.12455355,2943.4,2942.0,2.95167392]
[1769315248779,4.1942794,2943.3,2942.0,2.95167392]
[1769315248979,1.12455355,2943.4,2942.0,2.95167392]
[1769315248980,4.1942794,2943.2,2942.0,2.95167392]
[1769315249181,4.1942794,2943.1,2942.0,2.95167392]
[1769315249479,4.1942794,2943.0,2942.0,2.95167392]
[1769315249680,1.12455355,2943.4,2942.0,2.95167392]
[1769315249882,4.19421371,2943.3,2942.0,2.95167392]
[1769315250082,4.19421371,2943.2,2942.0,2.95167392]
[1769315250283,4.19421371,2943.1,2942.0,2.95167392]
[1769315250581,4.19421371,2943.0,2942.0,2.95167392]
[1769315250783,1.12455355,2943.4,2942.0,2.95167392]
[1769315250983,4.19415193,2943.3,2942.0,2.78146392]
[1769315251182,4.19415193,2943.2,2942.0,2.78146392]
[1769315251383,4.19415193,2943.1,2942.0,2.78146392]
[1769315251582,4.19415193,2943.0,2942.0,2.78146392]
[1769315251787,1.12455355,2943.4,2942.0,2.78146392]
[1769315251986,4.19410261,2943.3,2942.0,2.78146392]
[1769315252188,4.19410261,2943.2,2942.0,2.78146392]
[1769315252489,4.19410261,2943.1,2942.0,2.78146392]
[1769315252690,4.19410261,2943.0,2942.0,2.78146392]
[1769315252892,1.12455355,2943.4,2942.0,2.78146392]
[1769315253187,4.19403991,2943.3,2942.0,2.78146392]
[1769315253386,4.19403991,2943.2,2942.0,2.78146392]
[1769315253587,4.19403991,2943.1,2942.0,2.78146392]
[1769315253887,4.19403991,2943.0,2942.0,2.78146392]
[1769315254078,1.12455355,2943.4,2942.0,2.78146392]
[1769315254283,4.19396401,2943.3,2942.0,2.78146392]
[1769315254490,4.19396401,2943.2,2942.0,2.78146392]
[1769315254686,4.19396401,2943.1,2942.0,2.78146392]
[1769315254989,4.19396401,2943.0,2942.0,3.38025411]
[1769315255192,1.12455355,2943.4,2942.0,3.38025411]
[1769315255381,4.19394229,2943.3,2942.0,3.38025411]
[1769315255580,4.19394229,2943.2,2942.0,3.38025411]
[1769315255782,4.19394229,2943.1,2942.0,3.38025411]
[1769315255991,4.19394229,2943.0,2942.0,3.38025411]
[1769315256191,1.12455355,2943.4,2942.0,3.38025411]
[1769315256391,4.19393961,2943.3,2942.0,3.38025411]
[1769315256689,4.19393961,2943.2,2942.0,3.38025411]
[1769315256888,4.19393961,2943.1,2942.0,3.38025411]
[1769315257081,4.19393961,2943.0,2942.0,3.38025411]
[1769315257285,1.12455355,2943.4,2942.0,3.38025411]
[1769315257486,4.1939524,2943.3,2942.0,3.38025411]
[1769315257791,4.1939524,2943.2,2942.0,3.38025411]
[1769315257992,4.1939524,2943.1,2942.0,3.38025411]
[1769315258186,4.1939524,2943.0,2942.0,3.38025411]
[1769315258387,1.12455355,2943.4,2942.0,3.38025411]
[1769315258590,4.19398225,2943.3,2942.0,3.38025411]
[1769315258889,4.19398225,2943.2,2942.0,3.38025411]
[1769315259090,4.19398225,2943.1,2942.0,3.38025411]
[1769315259291,4.19398225,2943.0,2942.0,3.38025411]
[1769315259494,1.12455355,2943.4,2942.0,3.38025411]
[1769315259794,4.19375189,2943.3,2942.0,3.38025411]
[1769315260091,4.19375189,2943.2,2942.0,3.38025411]
[1769315260293,4.19375189,2943.1,2942.0,3.38025411]
[1769315260484,4.19375189,2943.0,2942.0,3.38025411]
[1769315260693,1.12455355,2943.4,2942.0,3.38025411]
[1769315260994,4.19367511,2943.3,2942.0,3.38025411]
[1769315261195,4.19367511,2943.2,2942.0,2.78146392]
[1769315261389,4.19367511,2943.1,2942.0,2.78146392]
[1769315261585,4.19367511,2943.0,2942.0,2.78146392]
[1769315261788,1.12455355,2943.4,2942.0,2.78146392]
[1769315261990,4.19373739,2943.3,2942.0,2.78146392]
[1769315262290,4.19373739,2943.2,2942.0,2.78146392]
[1769315262490,4.19373739,2943.1,2942.0,2.78146392]
[1769315262692,4.19373739,2943.0,2942.0,2.78146392]
[1769315262893,1.12455355,2943.4,2942.0,2.78146392]
[1769315263191,4.19367032,2943.3,2942.0,2.78146392]
[1769315263392,4.19367032,2943.2,2942.0,2.78146392]
[1769315263591,4.19367032,2943.1,2942.0,2.78146392]
[1769315263790,4.19367032,2943.0,2942.0,2.78146392]
[1769315263990,1.12455355,2943.4,2942.0,2.78146392]
[1769315264196,4.19379376,2943.3,2942.0,2.78146392]
[1769315264396,4.19379376,2943.2,2942.0,2.78146392]
[1769315264597,4.19379376,2943.1,2942.0,2.78146392]
[1769315264789,4.19379376,2943.0,2942.0,2.78146392]
[1769315264992,1.12455355,2943.4,2942.0,2.78146392]
[1769315265191,4.19396194,2943.3,2942.0,2.78146392]
[1769315265395,4.19396194,2943.2,2942.0,2.78146392]
[1769315265593,4.19396194,2943.1,2942.0,2.78146392]
[1769315265796,4.19396194,2943.0,2942.0,2.78146392]
[1769315265999,1.12455355,2943.4,2942.0,2.78146392]
[1769315266198,4.1939666,2943.3,2942.0,2.78146392]
[1769315266400,4.1939666,2943.2,2942.0,2.78146392]
[1769315266601,4.1939666,2943.1,2942.0,2.78146392]
[1769315266797,4.1939666,2943.0,2942.0,2.78146392]
[1769315266999,1.12455355,2943.4,2942.0,2.78146392]
[1769315267198,4.19397991,2943.3,2942.0,2.78146392]
[1769315267399,4.19397991,2943.2,2942.0,2.78146392]
[1769315267600,4.19397991,2943.1,2942.0,2.78146392]
[1769315267900,4.19397991,2943.0,2942.0,2.78146392]
[1769315268103,1.12455355,2943.4,2942.0,2.78146392]
[1769315268297,4.19400568,2943.3,2942.0,2.78146392]
[1769315268497,4.19400568,2943.2,2942.0,2.78146392]
[1769315268698,4.19400568,2943.1,2942.0,2.78146392]
[1769315268898,4.19400568,2943.0,2942.0,2.78146392]
[1769315269198,1.12455355,2943.4,2942.0,2.78146392]
[1769315269401,4.19403345,2943.3,2942.0,2.78146392]
[1769315269601,4.19403345,2943.2,2942.0,2.78146392]
[1769315269802,4.19403345,2943.1,2942.0,2.78146392]
[1769315270003,4.19403345,2943.0,2942.0,2.78146392]
[1769315270205,1.12455355,2943.4,2942.0,2.78146392]
[1769315270401,4.19405724,2943.3,2942.0,2.78146392]
[1769315270608,4.19405724,2943.2,2942.0,2.78146392]
[1769315270806,4.19405724,2943.1,2942.0,2.78146392]
[1769315271007,4.19405724,2943.0,2942.0,2.78146392]
[1769315271210,1.12455355,2943.4,2942.0,2.78146392]
[1769315271413,4.19451316,2943.3,2942.0,2.78146392]
[1769315271613,4.19451316,2943.2,2942.0,2.78146392]
[1769315271813,4.19451316,2943.1,2942.0,2.78146392]
[1769315272013,1.12455355,2943.4,2942.0,2.78146392]
[1769315272014,4.19451316,2943.0,2942.0,2.78146392]
[1769315272214,1.12455355,2943.4,2942.0,2.78146392]
[1769315272407,4.1945464,2943.3,2942.0,2.78146392]
[1769315272608,4.1945464,2943.2,2942.0,2.78146392]
[1769315272809,4.1945464,2943.1,2942.0,2.78146392]
[1769315273109,4.1945464,2943.0,2942.0,2.78146392]
[1769315273414,1.12455355,2943.4,2942.0,3.38025411]
[1769315273615,4.19459918,2943.3,2942.0,3.38025411]
[1769315273814,4.19459918,2943.2,2942.1,0.59879019]
[1769315274010,4.19459918,2943.1,2942.1,0.59879019]
[1769315274217,4.19459918,2943.0,2942.1,0.59879019]
[1769315274518,0.95824982,2943.7,2942.4,0.59879019]
[1769315274712,4.19464448,2943.6,2942.4,0.59879019]
[1769315275015,4.19464448,2943.5,2942.4,0.59879019]
[1769315275312,4.19464448,2943.4,2942.4,0.59879019]
[1769315275513,4.19464448,2943.3,2942.4,0.59879019]
[1769315275814,4.19464448,2943.2,2942.4,0.59879019]
[1769315276012,4.19464448,2943.1,2942.4,0.59879019]
[1769315276214,0.78546392,2943.5,2942.4,0.59879019]
[1769315276416,4.19460494,2943.4,2942.4,0.59879019]
[1769315276614,4.19460494,2943.3,2942.4,0.59879019]
[1769315276916,4.19460494,2943.2,2942.4,0.59879019]
[1769315277112,4.19460494,2943.1,2942.4,0.59879019]
[1769315277314,0.1727859,2943.7,2942.4,0.59879019]
[1769315277515,4.19457738,2943.6,2942.4,0.59879019]
[1769315277710,4.19457738,2943.5,2942.4,0.59879019]
[1769315277912,4.19457738,2943.4,2942.4,0.59879019]
[1769315278111,4.19457738,2943.3,2942.4,0.59879019]
[1769315278313,4.19457738,2943.2,2942.4,0.59879019]
[1769315278515,4.19457738,2943.1,2942.4,0.59879019]
[1769315278713,0.1727859,2943.7,2942.4,0.59879019]
[1769315278913,4.19451659,2943.6,2942.4,0.59879019]
[1769315279120,4.19451659,2943.5,2942.4,0.59879019]
[1769315279316,4.19451659,2943.4,2942.4,0.59879019]
[1769315279521,4.19451659,2943.3,2942.4,0.59879019]
[1769315279714,4.19451659,2943.2,2942.4,0.59879019]
[1769315279910,4.19451659,2943.1,2942.4,0.59879019]
[1769315280220,0.0026759,2943.7,2942.4,0.59879019]
[1769315280414,4.19527409,2943.6,2942.4,0.59879019]
[1769315280614,4.19527409,2943.5,2942.4,0.59879019]
[1769315280818,4.19527409,2943.4,2942.4,0.59879019]
[1769315281018,0.0026759,2943.7,2942.4,0.59879019]
[1769315281218,4.19348407,2943.6,2942.4,0.59879019]
[1769315281415,4.19348407,2943.5,2942.4,0.59879019]
[1769315281616,0.0026759,2943.7,2942.6,0.59879019]
[1769315281819,0.17008,2944.3,2942.6,0.59879019]
[1769315282016,4.19403322,2944.2,2942.6,0.59879019]
[1769315282210,4.19403322,2944.1,2942.6,0.59879019]
[1769315282410,6.24655507,2944.9,2943.0,0.59879019]
[1769315282619,4.19116318,2944.8,2943.0,0.59879019]
[1769315282919,4.19116318,2944.7,2943.0,0.59879019]
[1769315290628,0.78539421,2944.4,2943.0,0.59879019]
[1769315292226,0.31549841,2944.6,2943.0,0.59879019]
[1769315292428,4.15813441,2944.5,2943.0,0.59879019]
[1769315292726,4.15813441,2944.4,2943.0,0.59879019]
[1769315292926,0.31549841,2944.6,2943.0,0.59879019]
[1769315293127,4.15812694,2944.5,2943.0,0.59879019]
[1769315293326,4.15812694,2944.4,2943.0,0.59879019]
[1769315293526,0.31549841,2944.6,2943.0,0.59879019]
[1769315293730,4.15798396,2944.5,2943.0,0.59879019]
[1769315294026,4.15798396,2944.4,2943.0,0.59879019]
[1769315294228,0.31549841,2944.6,2943.0,0.59879019]
[1769315294429,4.15793863,2944.5,2943.0,0.59879019]
[1769315294628,4.15793863,2944.4,2943.0,0.59879019]
[1769315294822,0.31549841,2944.6,2943.0,0.59879019]
[1769315295025,4.15792669,2944.5,2943.0,0.59879019]
[1769315295223,4.15792669,2944.4,2943.0,0.59879019]
[1769315295428,0.31549841,2944.6,2943.0,0.59879019]
[1769315295628,4.1579815,2944.5,2943.0,0.59879019]
[1769315295830,4.1579815,2944.4,2943.0,0.59879019]
[1769315296029,0.31549841,2944.6,2943.0,0.59879019]
[1769315296230,4.15807071,2944.5,2943.0,0.59879019]
[1769315296530,4.15807071,2944.4,2943.0,0.59879019]
[1769315296730,0.31549841,2944.6,2943.0,0.59879019]
[1769315296929,4.15813085,2944.5,2943.0,0.59879019]
[1769315297228,4.15813085,2944.4,2943.0,0.59879019]
[1769315297528,0.31549841,2944.6,2943.0,0.59879019]
[1769315297727,4.15830732,2944.5,2943.0,0.59879019]
[1769315297929,4.15830732,2944.4,2943.0,0.59879019]
[1769315298128,0.31549841,2944.6,2943.0,0.59879019]
[1769315298328,4.15865395,2944.5,2943.0,0.59879019]
[1769315298522,4.15865395,2944.4,2943.0,0.59879019]
[1769315298724,0.31549841,2944.6,2943.0,0.59879019]
[1769315299024,4.1586548,2944.5,2943.0,0.59879019]
[1769315299220,4.1586548,2944.4,2943.0,0.59879019]
[1769315299423,0.31549841,2944.6,2943.0,0.59879019]
[1769315299623,4.15911319,2944.5,2943.0,0.59879019]
[1769315299826,4.15911319,2944.4,2943.0,0.59879019]
[1769315300121,0.31549841,2944.6,2943.0,0.59879019]
[1769315300326,4.15969577,2944.5,2943.0,0.59879019]
[1769315300525,4.15969577,2944.4,2943.0,0.59879019]
[1769315300730,0.31549841,2944.6,2943.0,0.59879019]
[1769315300931,4.15969591,2944.5,2943.0,0.59879019]
[1769315301132,4.15969591,2944.4,2943.0,0.59879019]
[1769315301333,0.31549841,2944.6,2943.0,0.59879019]
[1769315301540,4.16018404,2944.5,2943.0,0.59879019]
[1769315301832,4.16018404,2944.4,2943.0,0.59879019]
[1769315302028,0.31549841,2944.6,2943.0,0.59879019]
[1769315302333,4.16042841,2944.5,2943.0,0.59879019]
[1769315302632,4.16042841,2944.4,2943.0,0.59879019]
[1769315302829,4.16042841,2944.3,2943.0,0.59879019]
[1769315303127,0.31549841,2944.6,2943.0,0.59879019]
[1769315303323,4.16442517,2944.5,2943.0,0.59879019]
[1769315303529,4.16442517,2944.4,2943.0,0.59879019]
[1769315303729,4.16442517,2944.3,2943.0,0.59879019]
[1769315303928,0.31549841,2944.6,2943.0,0.59879019]
[1769315304127,4.16442517,2944.5,2943.0,0.59879019]
[1769315304327,4.16442517,2944.4,2943.0,0.59879019]
[1769315304529,4.16442517,2944.3,2943.0,0.59879019]
[1769315304723,0.31549841,2944.6,2943.0,0.59879019]
[1769315304925,4.16561134,2944.5,2943.0,0.59879019]
[1769315305128,4.16561134,2944.4,2943.0,0.59879019]
[1769315305334,4.16561134,2944.3,2943.0,0.59879019]
[1769315305535,0.31549841,2944.6,2943.0,0.59879019]
[1769315305732,4.16683795,2944.5,2943.0,0.59879019]
[1769315305936,4.16683795,2944.4,2943.0,0.59879019]
[1769315306131,4.16683795,2944.3,2943.0,0.59879019]
[1769315306331,4.16683795,2944.2,2943.0,0.59879019]
[1769315306638,0.31549841,2944.6,2943.0,0.59879019]
[1769315306837,4.16832218,2944.5,2943.0,0.59879019]
[1769315307037,4.16832218,2944.4,2943.0,0.59879019]
[1769315307336,4.16832218,2944.3,2943.0,0.59879019]
[1769315307638,4.16832218,2944.2,2943.0,0.59879019]
[1769315307838,0.31549841,2944.6,2943.0,0.59879019]
[1769315308137,4.17012924,2944.5,2943.0,0.59879019]
[1769315308441,4.17012924,2944.4,2943.0,0.59879019]
[1769315308633,0.31549841,2944.6,2943.0,0.59879019]
[1769315308634,4.17012924,2944.3,2943.0,0.59879019]
[1769315308937,4.17012924,2944.2,2943.0,0.59879019]
[1769315309139,4.17012924,2944.1,2943.0,0.59879019]
[1769315309331,0.31549841,2944.6,2943.0,0.59879019]
[1769315309532,4.17597009,2944.5,2943.0,0.59879019]
[1769315309732,4.17597009,2944.4,2943.0,0.59879019]
[1769315309932,4.17597009,2944.3,2943.0,0.59879019]
[1769315310133,4.17597009,2944.2,2943.0,0.59879019]
[1769315310334,4.17597009,2944.1,2943.0,0.59879019]
[1769315310543,0.31708877,2944.5,2943.0,0.59879019]
[1769315310739,4.17606102,2944.4,2943.0,0.59879019]
[1769315310939,4.17606102,2944.3,2943.0,0.59879019]
[1769315311135,4.17606102,2944.2,2943.0,0.59879019]
[1769315311441,4.17606102,2944.1,2943.0,0.59879019]
[1769315311643,4.17606102,2944.0,2943.0,0.59879019]
[1769315311835,0.31708877,2944.5,2943.0,0.59879019]
[1769315312037,4.17844602,2944.4,2943.0,0.59879019]
[1769315312331,4.17844602,2944.3,2943.0,0.59879019]
[1769315312536,4.17844602,2944.2,2943.0,0.59879019]
[1769315312732,4.17844602,2944.1,2943.0,0.59879019]
[1769315312937,4.17844602,2944.0,2943.0,0.59879019]
[1769315313136,0.31708877,2944.5,2943.0,0.59879019]
[1769315313339,4.17903358,2944.4,2943.0,0.59879019]
[1769315313540,4.17903358,2944.3,2943.0,0.59879019]
[1769315313741,4.17903358,2944.2,2943.0,0.59879019]
[1769315313942,4.17903358,2944.1,2943.0,0.59879019]
[1769315314143,4.17903358,2944.0,2943.0,0.59879019]
[1769315314342,0.31708877,2944.5,2943.0,0.59879019]
[1769315314547,4.17916619,2944.4,2943.0,0.59879019]
[1769315314746,4.17916619,2944.3,2943.0,0.59879019]
[1769315314946,4.17916619,2944.2,2943.0,0.59879019]
[1769315315148,4.17916619,2944.1,2943.0,0.59879019]
[1769315315350,4.17916619,2944.0,2943.0,0.59879019]
[1769315315541,0.31708877,2944.5,2943.0,0.59879019]
[1769315315738,4.17932224,2944.4,2943.0,0.59879019]
[1769315315943,4.17932224,2944.3,2943.0,0.59879019]
[1769315316144,4.17932224,2944.2,2943.0,0.59879019]
[1769315316339,4.17932224,2944.1,2943.0,0.59879019]
[1769315316553,4.17932224,2944.0,2943.0,0.59879019]
[1769315316847,0.17005,2944.7,2943.0,0.59879019]
[1769315317048,4.17950787,2944.6,2943.0,0.59879019]
[1769315317247,4.17950787,2944.5,2943.0,0.59879019]
[1769315317446,4.17950787,2944.4,2943.0,0.59879019]
[1769315317646,4.17950787,2944.3,2943.0,0.59879019]
[1769315317942,4.17950787,2944.2,2943.0,0.59879019]
[1769315318145,4.17950787,2944.1,2943.0,0.59879019]
[1769315318341,4.17950787,2944.0,2943.0,0.59879019]
[1769315318541,0.17005,2944.7,2943.0,0.59879019]
[1769315318745,4.18000424,2944.6,2943.0,0.59879019]
[1769315318946,4.18000424,2944.5,2943.0,0.59879019]
[1769315319146,4.18000424,2944.4,2943.0,0.59879019]
[1769315319342,4.18000424,2944.3,2943.0,0.59879019]
[1769315319544,4.18000424,2944.2,2943.0,0.59879019]
[1769315319851,4.18000424,2944.1,2943.0,0.59879019]
[1769315320052,4.18000424,2944.0,2943.0,0.59879019]
[1769315320253,0.17005,2944.7,2943.0,0.59879019]
[1769315320552,4.18118325,2944.6,2943.0,0.59879019]
[1769315320751,4.18118325,2944.5,2943.0,0.59879019]
[1769315321052,4.18118325,2944.4,2943.0,0.59879019]
[1769315321352,4.18118325,2944.3,2943.0,0.59879019]
[1769315321551,4.18118325,2944.2,2943.0,0.59879019]
[1769315321850,4.18118325,2944.1,2943.0,0.59879019]
[1769315322055,4.18118325,2944.0,2943.0,0.59879019]
[1769315322254,0.17005,2944.7,2943.0,0.59879019]
[1769315322445,4.18114659,2944.6,2943.0,0.59879019]
[1769315322645,4.18114659,2944.5,2943.0,0.59879019]
[1769315322850,4.18114659,2944.4,2943.0,0.59879019]
[1769315323050,4.18114659,2944.3,2943.0,0.59879019]
[1769315323250,4.18114659,2944.2,2943.0,0.59879019]
[1769315323447,4.18114659,2944.1,2943.0,0.59879019]
[1769315323650,4.18114659,2944.0,2943.0,0.59879019]
[1769315323951,0.17005,2944.7,2943.0,0.59879019]
[1769315324151,4.18112754,2944.6,2943.0,0.59879019]
[1769315324350,4.18112754,2944.5,2943.0,0.59879019]
[1769315324551,4.18112754,2944.4,2943.0,0.59879019]
[1769315324747,4.18112754,2944.3,2943.0,0.59879019]
[1769315324948,4.18112754,2944.2,2943.0,0.59879019]
[1769315325246,4.18112754,2944.1,2943.0,0.59879019]
[1769315325445,4.18112754,2944.0,2943.0,0.59879019]
[1769315325645,0.4972139,2944.7,2943.0,0.59879019]
[1769315325853,4.18108113,2944.6,2943.0,0.59879019]
[1769315326153,4.18108113,2944.5,2943.0,0.59879019]
[1769315326352,4.18108113,2944.4,2943.0,0.59879019]
[1769315326555,4.18108113,2944.3,2943.0,0.59879019]
[1769315326748,4.18108113,2944.2,2943.0,0.59879019]
[1769315327052,4.18108113,2944.1,2943.0,0.59879019]
[1769315327255,4.18108113,2944.0,2943.0,0.59879019]
[1769315327553,0.4972139,2944.7,2943.0,0.59879019]
[1769315327753,4.18024572,2944.6,2943.0,0.59879019]
[1769315327951,4.18024572,2944.5,2943.0,0.59879019]
[1769315328149,4.18024572,2944.4,2943.0,0.59879019]
[1769315328349,4.18024572,2944.3,2943.0,0.59879019]
[1769315328555,4.18024572,2944.2,2943.0,0.59879019]
[1769315328747,4.18024572,2944.1,2943.0,0.59879019]
[1769315328942,4.18024572,2944.0,2943.0,0.59879019]
[1769315329143,0.4972139,2944.7,2943.0,0.59879019]
[1769315329346,4.18016207,2944.6,2943.0,0.59879019]
[1769315329546,4.18016207,2944.5,2943.0,0.59879019]
[1769315329747,4.18016207,2944.4,2943.0,0.59879019]
[1769315329948,4.18016207,2944.3,2943.0,0.59879019]
[1769315330149,4.18016207,2944.2,2943.0,0.59879019]
[1769315330444,4.18016207,2944.1,2943.0,0.59879019]
[1769315330646,4.18016207,2944.0,2943.0,0.59879019]
[1769315330943,0.4972139,2944.7,2943.0,0.59879019]
[1769315331143,4.18014739,2944.6,2943.0,0.59879019]
[1769315331351,4.18014739,2944.5,2943.0,0.59879019]
[1769315331562,4.18014739,2944.4,2943.0,0.59879019]
[1769315331756,4.18014739,2944.3,2943.0,0.59879019]
[1769315331956,4.18014739,2944.2,2943.0,0.59879019]
[1769315332154,4.18014739,2944.1,2943.0,0.59879019]
[1769315332353,4.18014739,2944.0,2943.0,0.59879019]
[1769315332555,0.4972139,2944.7,2943.0,0.59879019]
[1769315332751,4.18013326,2944.6,2943.0,0.59879019]
[1769315333055,4.18013326,2944.5,2943.0,0.59879019]
[1769315333252,4.18013326,2944.4,2943.0,0.59879019]
[1769315333451,4.18013326,2944.3,2943.0,0.59879019]
[1769315333752,4.18013326,2944.2,2943.0,0.59879019]
[1769315334052,4.18013326,2944.1,2943.0,0.59879019]
[1769315334351,4.18013326,2944.0,2943.0,0.59879019]
[1769315334551,0.4972139,2944.7,2943.0,0.59879019]
[1769315334849,4.18013747,2944.6,2943.0,0.59879019]
[1769315335050,0.32688661,2944.4,2943.0,0.59879019]
[1769315335358,4.18013747,2944.3,2943.0,0.59879019]
[1769315335656,4.18013747,2944.2,2943.0,0.59879019]
[1769315335857,4.18013747,2944.1,2943.0,0.59879019]
[1769315336151,4.18013747,2944.0,2943.0,0.59879019]
[1769315336355,4.18013747,2943.9,2943.0,0.59879019]
[1769315336559,4.18013747,2943.8,2943.0,0.59879019]
[1769315336756,0.32688661,2944.4,2943.0,0.59879019]
[1769315336951,4.17813106,2944.3,2943.0,0.59879019]
[1769315337257,4.17813106,2944.2,2943.0,0.59879019]
[1769315337553,4.17813106,2944.1,2943.0,0.59879019]
[1769315337755,4.17813106,2944.0,2943.0,0.59879019]
[1769315337956,4.17813106,2943.9,2943.0,0.59879019]
[1769315338157,4.17813106,2943.8,2943.0,0.59879019]
[1769315338355,0.32688661,2944.4,2943.0,0.59879019]
[1769315338555,4.17725336,2944.3,2943.0,0.59879019]
[1769315338755,4.17725336,2944.2,2943.0,0.59879019]
[1769315339061,4.17725336,2944.1,2943.0,0.59879019]
[1769315341861,4.17725336,2944.1,2943.0,1.38386353]
[1769315342060,4.17725336,2944.0,2943.1,0.58924754]
[1769315342258,4.17725336,2943.9,2943.1,0.58924754]
[1769315342458,1.11195995,2944.4,2943.1,0.58924754]
[1769315342659,4.17698722,2944.3,2943.3,0.56951795]
[1769315342860,4.17698722,2944.3,2943.2,0.78507334]
[1769315342861,4.17698722,2944.2,2943.6,0.78507334]
[1769315343162,0.78762074,2944.8,2943.6,1.35782555]
[1769315343360,0.78762074,2944.8,2943.7,0.56951795]
[1769315343361,4.17710737,2944.7,2943.7,0.56951795]
[1769315343562,4.17710737,2944.6,2943.7,0.56951795]
[1769315343861,4.17710737,2944.5,2943.7,0.56951795]
[1769315344061,4.17710737,2944.4,2943.7,0.56951795]
[1769315344265,0.78762074,2944.8,2943.7,0.56951795]
[1769315344459,4.17614395,2944.7,2943.7,0.56951795]
[1769315344662,4.17614395,2944.6,2943.8,1.35459129]
[1769315344855,0.0025474,2944.8,2943.8,0.56951795]
[1769315345070,4.17608331,2944.7,2943.8,0.56951795]
[1769315345262,4.17608331,2944.6,2943.8,0.56951795]
[1769315345458,0.0025474,2944.8,2943.8,0.56951795]
[1769315345655,4.17467075,2944.7,2943.8,0.56951795]
[1769315345856,4.17467075,2944.6,2943.8,0.56951795]
[1769315346063,0.0025474,2944.8,2943.8,0.56951795]
[1769315346269,4.17455393,2944.7,2943.8,0.56951795]
[1769315346579,4.17455393,2944.6,2943.8,0.56951795]
[1769315346865,0.0025474,2944.8,2943.8,0.56951795]
[1769315347061,4.17359619,2944.7,2943.8,0.56951795]
[1769315347266,4.17359619,2944.6,2943.8,0.56951795]
[1769315347459,0.0025474,2944.8,2943.8,0.56951795]
[1769315347660,4.17272015,2944.7,2943.8,0.56951795]
[1769315347958,4.17272015,2944.6,2943.8,0.56951795]
[1769315348161,0.0025474,2944.8,2943.8,0.56951795]
[1769315348463,4.17257093,2944.7,2943.8,0.56951795]
[1769315348665,4.17198488,2944.6,2943.8,0.56951795]
[1769315348864,0.0025474,2944.8,2943.8,0.56951795]
[1769315349073,4.17198471,2944.7,2943.8,0.56951795]
[1769315349274,0.0025474,2944.8,2943.8,0.56951795]
[1769315349473,4.17136025,2944.7,2943.8,0.56951795]
[1769315349772,0.0025474,2944.8,2943.8,0.56951795]
[1769315349973,4.16470576,2944.7,2943.8,0.56951795]
[1769315350272,0.0025474,2944.8,2943.8,0.56951795]
[1769315350472,4.16416448,2944.7,2943.8,0.56951795]
[1769315350674,0.0025474,2944.8,2943.8,0.56951795]
[1769315350870,4.1641224,2944.7,2943.8,0.56951795]
[1769315351061,0.0025474,2944.8,2943.8,0.56951795]
[1769315351267,4.16394945,2944.7,2943.8,0.56951795]
[1769315351471,0.0025474,2944.8,2943.8,0.56951795]
[1769315351674,4.16362065,2944.7,2943.8,0.56951795]
[1769315351873,0.0025474,2944.8,2943.8,0.56951795]
[1769315352077,4.16359673,2944.7,2943.8,0.56951795]
[1769315352281,0.0025474,2944.8,2943.8,0.56951795]
[1769315352573,4.16316048,2944.7,2943.8,0.56951795]
[1769315352774,0.0025474,2944.8,2943.8,0.56951795]
[1769315352974,4.1631606,2944.7,2943.8,0.56951795]
[1769315353175,0.0025474,2944.8,2943.8,0.56951795]
[1769315353377,4.16278191,2944.7,2943.8,0.56951795]
[1769315353569,0.0025474,2944.8,2943.8,0.56951795]
[1769315353771,4.16278191,2944.7,2943.8,0.56951795]
[1769315353970,0.0025474,2944.8,2943.8,0.56951795]
[1769315354170,4.16278191,2944.7,2943.8,0.56951795]
[1769315354370,0.0025474,2944.8,2943.8,0.56951795]
[1769315354670,4.1624607,2944.7,2943.8,0.56951795]
[1769315354871,0.0025474,2944.8,2943.8,0.56951795]
[1769315355072,4.16246085,2944.7,2943.8,0.56951795]
[1769315355272,0.0025474,2944.8,2943.8,0.56951795]
[1769315355572,4.1621908,2944.7,2943.8,0.56951795]
[1769315355768,0.0025474,2944.8,2943.8,0.56951795]
[1769315355973,4.16219117,2944.7,2943.8,0.56951795]
[1769315356173,0.0025474,2944.8,2943.8,0.56951795]
[1769315356375,4.16197321,2944.7,2943.8,0.56951795]
[1769315356579,0.0025474,2944.8,2943.8,0.56951795]
[1769315356777,4.16196682,2944.7,2943.8,0.56951795]
[1769315356977,0.0025474,2944.8,2943.8,0.56951795]
[1769315357178,4.16196682,2944.7,2943.8,0.56951795]
[1769315357377,0.0025474,2944.8,2943.8,0.56951795]
[1769315357583,4.16179291,2944.7,2943.8,0.56951795]
[1769315357786,0.0025474,2944.8,2943.8,0.56951795]
[1769315357984,4.16179292,2944.7,2943.8,0.56951795]
[1769315358279,0.78507334,2944.4,2943.6,0.00323426]
[1769315362097,0.78507334,2944.4,2943.1,0.78507334]
[1769315362298,4.16252715,2944.3,2943.1,0.78507334]
[1769315362502,1.1540812,2944.4,2943.1,0.78507334]
[1769315362699,4.16252728,2944.3,2943.1,0.78507334]
[1769315362899,1.1540812,2944.4,2943.1,0.78507334]
[1769315363089,4.16252728,2944.3,2943.1,0.78873426]
[1769315363292,1.1540812,2944.4,2943.1,0.78873426]
[1769315363495,4.16263888,2944.3,2943.1,0.78873426]
[1769315363788,1.1540812,2944.4,2943.1,0.78873426]
[1769315363996,4.16263768,2944.3,2943.1,0.78873426]
[1769315364292,1.1540812,2944.4,2943.1,0.78873426]
[1769315364490,4.16275353,2944.3,2943.1,0.78873426]
[1769315364700,1.1540812,2944.4,2943.1,0.78873426]
[1769315364894,4.162753,2944.3,2943.1,0.78873426]
[1769315365094,1.1540812,2944.4,2943.1,0.78873426]
[1769315365295,4.16305616,2944.3,2943.1,1.37887888]
[1769315365496,0.78507334,2944.4,2943.1,1.37887888]
[1769315365692,4.16322454,2944.3,2943.1,1.37887888]
[1769315365891,0.78507334,2944.4,2943.1,1.37887888]
[1769315366097,4.16322432,2944.3,2943.1,1.37887888]
[1769315366394,0.78507334,2944.4,2943.1,1.37887888]
[1769315366603,4.16383477,2944.3,2943.1,1.37887888]
[1769315366803,0.78507334,2944.4,2943.1,1.37887888]
[1769315367099,4.16383477,2944.3,2943.1,1.37887888]
[1769315367297,1.32191218,2945.6,2944.2,1.37521796]
[1769315367500,0.78507334,2945.3,2944.2,0.59014462]